bitfinex/quotes_SOLUSD_20220307
["timestamp","ask_amount","ask_price","bid_price","bid_amount"]
[1646623882397,4.38957081,82.248,82.172,54.53307799]
[1646623882598,6.081,82.247,82.172,54.53307799]
[1646623882799,128.181,82.247,82.172,54.53307799]
[1646623882997,2.83613526,82.246,82.172,54.53307799]
[1646623884697,60.73701172,82.244,82.172,54.53307799]
[1646623884898,122.1,82.243,82.172,54.53307799]
[1646623886097,122.1,82.241,82.172,54.53307799]
[1646623886298,6.082,82.24,82.172,54.53307799]
[1646623886496,6.082,82.24,82.173,24.7311]
[1646623887098,2.83613526,82.239,82.135,18.5092]
[1646623887298,6.083,82.238,82.139,23.6199]
[1646623887500,1.63299391,82.227,82.121,17.9439]
[1646623887698,1.63299391,82.225,82.116,23.4904]
[1646623887899,122.1,82.219,82.116,23.4904]
[1646623888101,6.085,82.218,82.12,18.2602]
[1646623888298,122.1,82.217,82.12,18.2602]
[1646623888498,6.085,82.216,82.121,11.94004299]
[1646623888899,122.1,82.215,82.121,11.94004299]
[1646623889100,122.1,82.215,82.13,18.2593]
[1646623889299,122.1,82.215,82.132,62.66503346]
[1646623889900,24.3603,82.217,82.132,62.66503346]
[1646623890300,14.68,82.22,82.132,62.66503346]
[1646623890301,52.17973926,82.223,82.14,18.2573]
[1646623890503,52.17973926,82.223,82.141,24.8763]
[1646623890903,52.17973926,82.223,82.142,21.39027741]
[1646623891103,52.17973926,82.223,82.142,68.80183208]
[1646623891504,52.17973926,82.223,82.143,23.33105467]
[1646623891802,22.6265,82.238,82.143,23.33105467]
[1646623892203,22.6265,82.238,82.16,18.2471]
[1646623892403,22.6265,82.238,82.161,24.8763]
[1646623892603,6.083,82.25,82.161,24.8763]
[1646623892809,59.73181067,82.249,82.162,62.32891473]
[1646623893004,59.73181067,82.249,82.163,0.49170899]
[1646623893228,59.73181067,82.249,82.17,18.2489]
[1646623893426,22.6265,82.259,82.17,18.2489]
[1646623893625,22.6265,82.259,82.172,0.54458908]
[1646623894030,22.6265,82.259,82.171,48.7827]
[1646623894426,51.09452087,82.258,82.19,18.2443]
[1646623894625,51.09452087,82.258,82.192,54.72689949]
[1646623898127,122.1,82.257,82.192,54.72689949]
[1646623898927,51.09452087,82.258,82.192,54.72689949]
[1646623899829,6.08,82.257,82.192,54.72689949]
[1646623901532,57.17452087,82.258,82.192,54.72689949]
[1646623902532,51.09452087,82.258,82.192,54.72689949]
[1646623903535,122.1,82.257,82.192,54.72689949]
[1646623903935,51.09452087,82.258,82.192,54.72689949]
[1646623904735,122.1,82.257,82.192,54.72689949]
[1646623904936,6.08,82.256,82.192,54.72689949]
[1646623905535,6.08,82.257,82.192,54.72689949]
[1646623906737,51.09452087,82.258,82.192,54.72689949]
[1646623909943,122.1,82.257,82.192,54.72689949]
[1646623911945,51.09452087,82.258,82.192,54.72689949]
[1646623913548,122.1,82.257,82.192,54.72689949]
[1646623913946,57.17452087,82.258,82.192,54.72689949]
[1646623914350,51.09452087,82.258,82.192,54.72689949]
[1646623915547,122.1,82.257,82.192,54.72689949]
[1646623915947,51.09452087,82.258,82.192,54.72689949]
[1646623917349,122.1,82.257,82.192,54.72689949]
[1646623918549,6.08,82.256,82.192,54.72689949]
[1646623919554,1.63299391,82.251,82.192,54.72689949]
[1646623920053,122.1,82.249,82.192,54.72689949]
[1646623920253,6.081,82.248,82.191,23.9085]
[1646623920654,123.73299391,82.249,82.191,23.9085]
[1646623921053,1.63299391,82.249,82.191,23.9085]
[1646623921754,1.63299391,82.248,82.191,23.9085]
[1646623921965,1.63299391,82.248,82.189,59.58784824]
[1646623922161,1.63299391,82.242,82.16,14.68]
[1646623922357,1.63299391,82.231,82.152,24.5756]
[1646623922558,1.63299391,82.229,82.152,24.5756]
[1646623923058,122.1,82.227,82.153,48.74174873]
[1646623923661,122.1,82.225,82.153,48.74174873]
[1646623924260,24.2633,82.226,82.153,48.74174873]
[1646623924661,122.1,82.225,82.153,48.74174873]
[1646623924861,24.2633,82.226,82.153,48.74174873]
[1646623925359,24.2633,82.226,82.16,18.2516]
[1646623925560,14.68,82.27,82.16,18.2516]
[1646623925561,1.63299391,82.247,82.16,32.9316]
[1646623925760,1.63299391,82.247,82.161,13.41586941]
[1646623925962,1.63299391,82.256,82.162,24.5145]
[1646623926163,47.87568804,82.255,82.162,60.74746448]
[1646623926361,1.63299391,82.254,82.163,23.33105467]
[1646623926561,122.1,82.252,82.18,18.2456]
[1646623926762,123.73299391,82.252,82.181,80.82173247]
[1646623926983,6.081,82.251,82.181,80.82173247]
[1646623927382,1.63299391,82.242,82.181,80.82173247]
[1646623927585,6.081,82.241,82.151,24.5481]
[1646623927784,1.63299391,82.238,82.152,24.5145]
[1646623927984,1.63299391,82.234,82.152,24.5145]
[1646623928183,122.1,82.232,82.152,24.5145]
[1646623928384,6.083,82.231,82.152,24.5145]
[1646623928588,122.1,82.229,82.153,57.73484703]
[1646623928783,128.183,82.229,82.153,57.73484703]
[1646623929885,122.1,82.229,82.153,57.73484703]
[1646623931987,122.1,82.229,82.154,12.9230745]
[1646623932787,50.66067663,82.23,82.16,18.2521]
[1646623932986,24.2771,82.233,82.16,32.9321]
[1646623933587,24.2771,82.233,82.161,12.9202318]
[1646623933787,1.63299391,82.249,82.17,18.2493]
[1646623933986,54.36438484,82.248,82.172,50.37040414]
[1646623934590,122.1,82.246,82.172,50.37040414]
[1646623934793,6.082,82.245,82.172,50.37040414]
[1646623936094,6.082,82.246,82.172,50.37040414]
[1646623936695,128.182,82.246,82.172,50.37040414]
[1646623936898,129.81499391,82.246,82.172,50.37040414]
[1646623937095,1.63299391,82.242,82.172,50.37040414]
[1646623937298,1.63299391,82.24,82.172,50.37040414]
[1646623937495,6.082,82.239,82.172,50.37040414]
[1646623937696,122.1,82.238,82.17,14.68]
[1646623937896,122.1,82.238,82.043,7.0]
[1646623937897,1.63299391,82.233,82.14,14.68]
[1646623938097,1.63299391,82.222,82.14,14.68]
[1646623938295,1.63299391,82.216,82.141,24.5323]
[1646623938497,6.083,82.215,82.141,24.5323]
[1646623938697,58.54179749,82.213,82.142,56.03597837]
[1646623938899,122.1,82.212,82.142,56.03597837]
[1646623940499,1.63299391,82.225,82.142,56.03597837]
[1646623940500,6.083,82.223,82.142,56.03597837]
[1646623940721,1.63299391,82.229,82.143,23.33105467]
[1646623940907,6.083,82.236,82.143,23.33105467]
[1646623941107,4.0885672,82.271,82.143,23.33105467]
[1646623941108,1.63299391,82.24,82.144,36.66930684]
[1646623941313,6.083,82.239,82.144,36.66930684]
[1646623941508,60.50468436,82.236,82.15,18.256]
[1646623941708,60.50468436,82.236,82.161,50.93038364]
[1646623941907,60.50468436,82.236,82.17,14.68]
[1646623943111,60.50468436,82.236,82.17,32.9303]
[1646623946612,122.1,82.235,82.17,32.9303]
[1646623946812,30.4395,82.234,82.17,32.9303]
[1646623947015,6.082,82.234,82.17,32.9303]
[1646623947213,1.63299391,82.254,82.171,6.082]
[1646623947514,1.63299391,82.257,82.19,18.2429]
[1646623947716,60.87814848,82.255,82.201,46.94124796]
[1646623947914,6.08,82.254,82.201,46.94124796]
[1646623948315,6.08,82.26,82.201,46.94124796]
[1646623948514,1.63299391,82.266,82.21,18.2418]
[1646623948716,1.63299391,82.277,82.22,14.68]
[1646623948916,1.63299391,82.28,82.22,14.68]
[1646623949115,24.0148,82.283,82.22,14.68]
[1646623949317,83.36455748,82.283,82.221,46.14022402]
[1646623949517,83.36455748,82.283,82.222,24.5224]
[1646623950118,83.36455748,82.283,82.23,18.2373]
[1646623950321,83.36455748,82.283,82.23,32.9173]
[1646623950519,24.0148,82.283,82.23,32.9173]
[1646623950721,6.078,82.307,82.23,32.9173]
[1646623950722,1.63299391,82.288,82.23,32.9173]
[1646623951120,1.63299391,82.292,82.23,32.9173]
[1646623951324,1.63299391,82.301,82.231,5.24931249]
[1646623951619,136.1444,82.358,82.231,5.24931249]
[1646623951620,1.63299391,82.316,82.251,58.89024029]
[1646623951820,58.34190317,82.328,82.261,0.66063918]
[1646623951821,1.63299391,82.32,82.261,0.66063918]
[1646623952021,59.97489708,82.328,82.262,24.6458]
[1646623952322,1.63299391,82.323,82.262,24.6458]
[1646623952522,1.63299391,82.321,82.262,24.6458]
[1646623953245,122.1,82.327,82.262,24.6458]
[1646623953446,6.075,82.326,82.262,24.6458]
[1646623954846,58.34190317,82.328,82.262,24.6458]
[1646623956146,58.34190317,82.328,82.27,18.2277]
[1646623956347,58.34190317,82.328,82.271,48.51025268]
[1646623956546,23.5288,82.332,82.271,48.51025268]
[1646623957347,1.63299391,82.347,82.271,48.51025268]
[1646623957548,1.63299391,82.349,82.272,23.6343]
[1646623957750,61.99435877,82.346,82.272,23.6343]
[1646623958748,61.99435877,82.346,82.28,18.2249]
[1646623958948,61.99435877,82.346,82.28,32.9049]
[1646623959649,122.1,82.345,82.28,14.68]
[1646623960253,6.074,82.344,82.28,14.68]
[1646623962054,122.1,82.343,82.28,14.68]
[1646623962255,6.074,82.342,82.28,14.68]
[1646623962955,128.174,82.342,82.28,14.68]
[1646623963959,128.174,82.342,82.24,18.2339]
[1646623963960,148.72663749,82.341,82.24,18.2339]
[1646623964162,122.1,82.339,82.241,23.0324]
[1646623964360,6.075,82.338,82.241,23.0324]
[1646623964560,113.4,82.326,82.241,23.0324]
[1646623964760,146.7801,82.325,82.241,23.0324]
[1646623964960,122.1,82.323,82.242,52.24666271]
[1646623965166,6.075,82.322,82.242,52.24666271]
[1646623969262,122.1,82.321,82.242,52.24666271]
[1646623969462,6.075,82.32,82.242,52.24666271]
[1646623971165,1.63299391,82.317,82.242,52.24666271]
[1646623971370,6.075,82.316,82.242,52.24666271]
[1646623972165,122.1,82.315,82.242,52.24666271]
[1646623972367,122.1,82.313,82.242,52.24666271]
[1646623973170,123.73299391,82.313,82.242,52.24666271]
[1646623973968,122.1,82.313,82.242,52.24666271]
[1646623974366,23.702,82.314,82.242,52.24666271]
[1646623974367,23.702,82.314,82.25,18.233]
[1646623974567,23.702,82.314,82.26,14.68]
[1646623974769,23.702,82.314,82.262,63.66081499]
[1646623975772,1.63299391,82.318,82.262,63.66081499]
[1646623975971,73.30134979,82.324,82.262,63.66081499]
[1646623977175,1.63299391,82.319,82.262,63.66081499]
[1646623977374,1.63299391,82.318,82.262,63.66081499]
[1646623978373,48.57304979,82.324,82.262,63.66081499]
[1646623978374,1.63299391,82.317,82.27,18.2292]
[1646623978574,1.63299391,82.317,82.27,32.9092]
[1646623979177,1.63299391,82.316,82.27,32.9092]
[1646623979395,1.63299391,82.317,82.28,18.2267]
[1646623979597,1.63299391,82.321,82.28,32.9067]
[1646623980296,1.63299391,82.324,82.28,32.9067]
[1646623980596,48.14594422,82.326,82.28,32.9067]
[1646623980998,1.63299391,82.328,82.28,32.9067]
[1646623981297,1.63299391,82.326,82.281,23.3551]
[1646623981699,1.63299391,82.327,82.281,23.3551]
[1646623982099,1.63299391,82.328,82.281,23.3551]
[1646623982298,1.63299391,82.327,82.281,23.3551]
[1646623983100,1.63299391,82.328,82.281,23.3551]
[1646623984703,1.63299391,82.33,82.29,18.2244]
[1646623984903,1.63299391,82.332,82.3,14.68]
[1646623985101,1.63299391,82.335,82.3,14.68]
[1646623985300,1.63299391,82.336,82.3,14.68]
[1646623985501,1.63299391,82.336,82.301,57.42251886]
[1646623985700,1.63299391,82.337,82.301,57.42251886]
[1646623986103,1.63299391,82.336,82.31,18.2202]
[1646623986301,1.63299391,82.336,82.301,57.42251886]
[1646623986502,1.63299391,82.335,82.301,57.42251886]
[1646623986903,63.2203479,82.351,82.301,57.42251886]
[1646623986904,1.63299391,82.336,82.301,57.42251886]
[1646623987802,1.63299391,82.341,82.301,57.42251886]
[1646623988203,1.63299391,82.347,82.301,57.42251886]
[1646623988804,1.63299391,82.347,82.302,22.9286]
[1646623989204,1.63299391,82.348,82.302,22.9286]
[1646623989604,48.56270261,82.347,82.302,22.9286]
[1646623990005,50.19569652,82.347,82.302,22.9286]
[1646623990206,1.63299391,82.346,82.302,22.9286]
[1646623990404,50.19569652,82.347,82.302,22.9286]
[1646623990606,1.63299391,82.346,82.302,22.9286]
[1646623992106,50.19569652,82.347,82.302,22.9286]
[1646623992305,1.63299391,82.347,82.302,22.9286]
[1646623992506,1.63299391,82.363,82.302,22.9286]
[1646623992907,1.63299391,82.368,82.302,22.9286]
[1646623993207,1.63299391,82.367,82.302,22.9286]
[1646623993408,1.63299391,82.365,82.302,22.9286]
[1646623993608,1.63299391,82.364,82.302,22.9286]
[1646623993808,1.63299391,82.362,82.302,22.9286]
[1646623994209,1.63299391,82.362,82.31,18.22]
[1646623994412,1.63299391,82.363,82.31,32.9]
[1646623994609,1.63299391,82.362,82.31,32.9]
[1646623995010,1.63299391,82.36,82.31,32.9]
[1646623995209,1.63299391,82.361,82.31,32.9]
[1646623995409,1.63299391,82.363,82.31,32.9]
[1646623995608,1.63299391,82.364,82.31,32.9]
[1646623995809,1.63299391,82.365,82.31,32.9]
[1646623996108,1.63299391,82.364,82.31,32.9]
[1646623996308,1.63299391,82.366,82.31,32.9]
[1646623996509,1.63299391,82.364,82.31,32.9]
[1646623996809,52.31629369,82.364,82.31,32.9]
[1646623997810,53.9492876,82.364,82.31,14.68]
[1646623998009,1.63299391,82.361,82.31,14.68]
[1646623998409,1.63299391,82.36,82.31,14.68]
[1646623998809,1.63299391,82.348,82.302,22.9286]
[1646623999011,1.63299391,82.346,82.302,22.9286]
[1646623999211,1.63299391,82.348,82.302,22.9286]
[1646623999410,1.63299391,82.347,82.302,22.9286]
[1646623999813,1.63299391,82.346,82.302,22.9286]
[1646624000314,22.21427734,82.368,82.302,22.9286]
[1646624000315,1.63299391,82.345,82.302,22.9286]
[1646624000512,1.63299391,82.355,82.31,14.68]
[1646624000811,1.63299391,82.379,82.31,14.68]
[1646624001012,1.63299391,82.383,82.311,31.44001782]
[1646624001211,1.63299391,82.384,82.311,83.10140583]
[1646624001412,1.63299391,82.388,82.312,26.87918801]
[1646624001611,1.63299391,82.389,82.331,51.29028596]
[1646624001811,1.63299391,82.389,82.34,14.68]
[1646624002218,1.63299391,82.387,82.34,14.68]
[1646624002412,186.2,82.459,82.341,23.2823]
[1646624002413,1.63299391,82.394,82.341,23.2823]
[1646624002611,1.63299391,82.396,82.341,48.0645]
[1646624002811,1.63299391,82.394,82.35,18.2085]
[1646624003014,1.63299391,82.394,82.36,14.68]
[1646624003212,1.63299391,82.399,82.361,49.67044864]
[1646624004214,1.63299391,82.396,82.361,49.67044864]
[1646624004616,1.63299391,82.397,82.361,49.67044864]
[1646624004818,1.63299391,82.396,82.361,49.67044864]
[1646624005214,1.63299391,82.397,82.361,49.67044864]
[1646624005414,1.63299391,82.4,82.361,49.67044864]
[1646624005815,1.63299391,82.404,82.361,49.67044864]
[1646624006016,1.63299391,82.404,82.362,24.4048]
[1646624006216,1.63299391,82.414,82.362,24.4048]
[1646624006416,1.63299391,82.413,82.363,0.51501756]
[1646624006617,6.069,82.457,82.363,127.41540126]
[1646624006618,1.63299391,82.415,82.363,127.41540126]
[1646624006817,45.67401118,82.456,82.363,127.41540126]
[1646624006818,1.63299391,82.418,82.363,127.41540126]
[1646624007018,1.63299391,82.42,82.363,127.41540126]
[1646624007218,1.63299391,82.42,82.363,5.31540126]
[1646624007423,1.63299391,82.419,82.362,24.4048]
[1646624007619,1.63299391,82.424,82.37,18.2052]
[1646624007819,1.63299391,82.424,82.38,14.68]
[1646624008020,1.63299391,82.424,82.381,23.0652]
[1646624008419,1.63299391,82.422,82.381,23.0652]
[1646624009624,1.63299391,82.421,82.381,23.0652]
[1646624009928,62.43141066,82.419,82.38,14.68]
[1646624010124,1.63299391,82.413,82.361,49.67044864]
[1646624010422,1.63299391,82.402,82.361,49.67044864]
[1646624011623,1.63299391,82.401,82.361,49.67044864]
[1646624011824,1.63299391,82.4,82.361,49.67044864]
[1646624012026,1.63299391,82.399,82.361,49.67044864]
[1646624012428,1.63299391,82.4,82.361,49.67044864]
[1646624012628,1.63299391,82.4,82.36,14.68]
[1646624013145,1.63299391,82.399,82.36,14.68]
[1646624013327,1.63299391,82.398,82.36,14.68]
[1646624014125,1.63299391,82.397,82.36,14.68]
[1646624014725,1.63299391,82.396,82.36,14.68]
[1646624015326,1.63299391,82.395,82.36,14.68]
[1646624015526,62.54833076,82.394,82.36,14.68]
[1646624016427,1.63299391,82.395,82.36,14.68]
[1646624016627,27.12304155,82.418,82.36,14.68]
[1646624016628,1.63299391,82.394,82.36,14.68]
[1646624017529,55.5569912,82.393,82.36,14.68]
[1646624017928,57.18998511,82.393,82.36,14.68]
[1646624018430,1.63299391,82.391,82.36,14.68]
[1646624019031,1.63299391,82.392,82.36,14.68]
[1646624019430,1.63299391,82.393,82.36,14.68]
[1646624019729,1.63299391,82.394,82.36,14.68]
[1646624020130,1.63299391,82.392,82.36,14.68]
[1646624020331,1.63299391,82.39,82.36,14.68]
[1646624020730,1.63299391,82.389,82.36,14.68]
[1646624020930,1.63299391,82.391,82.36,14.68]
[1646624021932,1.63299391,82.39,82.36,14.68]
[1646624022330,1.63299391,82.387,82.36,14.68]
[1646624022729,1.63299391,82.386,82.36,14.68]
[1646624024331,6.60161825,82.407,82.36,14.68]
[1646624024332,1.63299391,82.384,82.36,14.68]
[1646624025832,1.63299391,82.385,82.36,14.68]
[1646624026431,1.63299391,82.384,82.36,14.68]
[1646624026833,1.63299391,82.383,82.36,14.68]
[1646624028133,3.25874155,82.406,82.36,14.68]
[1646624028134,1.63299391,82.382,82.36,14.68]
[1646624028332,1.63299391,82.378,82.36,14.68]
[1646624030439,1.63299391,82.378,82.33,18.2134]
[1646624030643,1.63299391,82.375,82.34,14.68]
[1646624030839,1.63299391,82.373,82.34,14.68]
[1646624031039,1.63299391,82.369,82.34,14.68]
[1646624031440,1.63299391,82.37,82.34,14.68]
[1646624031641,1.63299391,82.369,82.314,24.7398]
[1646624031840,1.63299391,82.36,82.32,14.68]
[1646624032043,1.63299391,82.364,82.32,14.68]
[1646624032245,1.63299391,82.365,82.32,14.68]
[1646624032443,1.63299391,82.364,82.32,14.68]
[1646624032644,1.63299391,82.364,82.321,63.09653022]
[1646624032844,1.63299391,82.363,82.321,63.09653022]
[1646624033045,1.63299391,82.364,82.321,63.09653022]
[1646624033743,1.63299391,82.363,82.321,63.09653022]
[1646624033946,1.63299391,82.362,82.321,63.09653022]
[1646624034145,1.63299391,82.361,82.321,63.09653022]
[1646624034545,1.63299391,82.362,82.321,63.09653022]
[1646624034944,1.63299391,82.363,82.321,63.09653022]
[1646624035143,1.63299391,82.362,82.321,63.09653022]
[1646624035346,1.63299391,82.363,82.321,63.09653022]
[1646624035546,6.6041951,82.379,82.321,63.09653022]
[1646624035547,1.63299391,82.362,82.321,63.09653022]
[1646624035948,61.62604297,82.361,82.321,63.09653022]
[1646624036145,59.99304906,82.361,82.321,63.09653022]
[1646624037045,122.1,82.379,82.321,63.09653022]
[1646624037046,1.63299391,82.363,82.321,63.09653022]
[1646624037444,1.63299391,82.36,82.321,63.09653022]
[1646624039852,1.63299391,82.361,82.321,63.09653022]
[1646624040051,1.63299391,82.36,82.321,63.09653022]
[1646624040250,1.63299391,82.361,82.321,63.09653022]
[1646624041253,1.63299391,82.36,82.321,63.09653022]
[1646624041852,1.63299391,82.361,82.321,63.09653022]
[1646624042252,1.63299391,82.362,82.321,63.09653022]
[1646624042453,1.63299391,82.354,82.321,63.09653022]
[1646624042654,1.63299391,82.353,82.321,63.09653022]
[1646624042854,1.63299391,82.354,82.32,13.68]
[1646624043054,1.63299391,82.356,82.32,13.68]
[1646624043269,1.63299391,82.355,82.283,12.68714451]
[1646624043467,1.63299391,82.355,82.3,14.68]
[1646624043669,1.63299391,82.351,82.3,14.68]
[1646624043867,1.63299391,82.355,82.301,51.31172802]
[1646624044267,1.63299391,82.357,82.31,18.2218]
[1646624045266,1.63299391,82.358,82.31,18.2218]
[1646624046269,1.63299391,82.36,82.31,18.2218]
[1646624046669,1.63299391,82.361,82.31,32.9018]
[1646624046868,1.63299391,82.362,82.31,32.9018]
[1646624047270,1.63299391,82.361,82.31,32.9018]
[1646624047471,1.63299391,82.36,82.31,32.9018]
[1646624047873,1.63299391,82.361,82.31,32.9018]
[1646624048673,1.63299391,82.357,82.31,32.9018]
[1646624048876,7.70499391,82.356,82.31,32.9018]
[1646624049075,1.63299391,82.356,82.31,32.9018]
[1646624049878,1.63299391,82.357,82.31,32.9018]
[1646624050278,6.072,82.356,82.31,32.9018]
[1646624051578,1.63299391,82.357,82.31,32.9018]
[1646624052280,1.63299391,82.356,82.31,32.9018]
[1646624052679,1.63299391,82.358,82.31,32.9018]
[1646624053080,1.63299391,82.36,82.31,32.9018]
[1646624053681,1.63299391,82.37,82.311,0.50293428]
[1646624053884,1.63299391,82.375,82.32,18.2162]
[1646624054081,1.63299391,82.375,82.33,14.68]
[1646624054380,6.071,82.397,82.33,14.68]
[1646624054381,1.63299391,82.38,82.332,54.82436058]
[1646624054581,1.63299391,82.382,82.332,54.82436058]
[1646624054985,1.63299391,82.383,82.332,54.82436058]
[1646624055183,1.63299391,82.386,82.34,18.2096]
[1646624055386,1.63299391,82.394,82.35,14.68]
[1646624055684,1.63299391,82.41,82.352,0.56321782]
[1646624056084,1.63299391,82.412,82.352,0.56321782]
[1646624056491,1.63299391,82.415,82.352,0.56321782]
[1646624056686,1.63299391,82.423,82.352,0.56321782]
[1646624056985,62.43243441,82.423,82.352,28.30979284]
[1646624057185,62.43243441,82.423,82.36,18.2036]
[1646624057387,64.06542832,82.423,82.37,14.68]
[1646624057784,62.43243441,82.423,82.37,14.68]
[1646624057985,1.63299391,82.421,82.37,14.68]
[1646624058385,62.43243441,82.423,82.37,14.68]
[1646624059189,62.43243441,82.423,82.37,32.8868]
[1646624060286,6.067,82.422,82.37,32.8868]
[1646624061588,62.43243441,82.423,82.37,32.8868]
[1646624064394,62.43243441,82.423,82.37,31.8868]
[1646624066193,1.63299391,82.44,82.371,0.50529612]
[1646624066395,47.7639,82.448,82.38,18.206]
[1646624066396,1.63299391,82.442,82.38,18.206]
[1646624066794,1.63299391,82.441,82.38,18.206]
[1646624067194,50.72775333,82.44,82.38,18.206]
[1646624067394,52.36074724,82.44,82.38,18.206]
[1646624067594,50.72775333,82.44,82.38,18.206]
[1646624067994,52.36074724,82.44,82.38,18.206]
[1646624068595,50.72775333,82.44,82.38,18.206]
[1646624068797,52.36074724,82.44,82.38,18.206]
[1646624068994,50.72775333,82.44,82.38,18.206]
[1646624069195,6.067,82.439,82.38,18.206]
[1646624070898,6.067,82.439,82.38,32.886]
[1646624071098,50.72775333,82.44,82.38,32.886]
[1646624071299,1.63299391,82.445,82.38,32.886]
[1646624071603,49.39689391,82.448,82.38,32.886]
[1646624072199,47.7639,82.448,82.38,32.886]
[1646624072804,1.63299391,82.464,82.38,106.01809636]
[1646624073002,6.066,82.463,82.381,24.46214903]
[1646624073209,6.066,82.469,82.4,18.1977]
[1646624073403,52.36571215,82.468,82.41,14.68]
[1646624073605,6.065,82.467,82.41,14.68]
[1646624073804,6.065,82.468,82.41,14.68]
[1646624074008,6.065,82.47,82.41,14.68]
[1646624074203,6.065,82.471,82.41,14.68]
[1646624074607,62.23535561,82.47,82.41,14.68]
[1646624075206,62.23535561,82.47,82.41,32.8779]
[1646624076109,1.63299391,82.477,82.411,0.60380019]
[1646624076307,1.63299391,82.478,82.43,18.1912]
[1646624076507,1.63299391,82.479,82.44,14.68]
[1646624076921,46.29223303,82.478,82.441,47.99210541]
[1646624078326,46.29223303,82.478,82.44,14.68]
[1646624078526,122.1,82.477,82.42,14.68]
[1646624078725,6.064,82.476,82.391,23.4664]
[1646624078926,1.63299391,82.473,82.4,14.68]
[1646624079125,1.63299391,82.47,82.4,14.68]
[1646624079325,6.065,82.469,82.401,52.46881821]
[1646624079728,1.63299391,82.465,82.401,52.46881821]
[1646624080126,1.63299391,82.463,82.401,52.46881821]
[1646624080329,1.63299391,82.457,82.401,52.46881821]
[1646624080528,6.065,82.456,82.401,52.46881821]
[1646624080928,1.63299391,82.455,82.401,52.46881821]
[1646624081129,47.25025149,82.453,82.401,52.46881821]
[1646624081726,48.8832454,82.453,82.401,52.46881821]
[1646624082329,1.63299391,82.445,82.401,52.46881821]
[1646624083129,1.63299391,82.444,82.401,52.46881821]
[1646624083328,1.63299391,82.444,82.4,14.68]
[1646624084130,1.63299391,82.443,82.4,14.68]
[1646624084330,1.63299391,82.439,82.401,51.89568646]
[1646624084935,1.63299391,82.442,82.401,51.89568646]
[1646624085132,1.63299391,82.441,82.401,51.89568646]
[1646624085533,1.63299391,82.442,82.401,51.89568646]
[1646624085734,1.63299391,82.447,82.401,51.39568646]
[1646624086233,1.63299391,82.446,82.401,51.39568646]
[1646624086532,49.15676905,82.445,82.401,51.39568646]
[1646624088235,1.63299391,82.447,82.401,51.39568646]
[1646624088437,1.63299391,82.446,82.401,51.39568646]
[1646624089237,1.63299391,82.453,82.41,18.1987]
[1646624089437,1.63299391,82.458,82.41,32.8787]
[1646624089838,1.63299391,82.461,82.41,32.8787]
[1646624090040,1.63299391,82.46,82.41,32.8787]
[1646624090238,1.63299391,82.464,82.41,32.8787]
[1646624090641,6.065,82.481,82.41,32.8787]
[1646624090642,1.63299391,82.461,82.41,32.8787]
[1646624091039,1.63299391,82.46,82.41,32.8787]
[1646624091539,1.63299391,82.461,82.41,32.8787]
[1646624091739,1.63299391,82.46,82.41,32.8787]
[1646624091941,1.63299391,82.459,82.41,32.8787]
[1646624092239,1.63299391,82.458,82.41,32.8787]
[1646624093242,1.63299391,82.457,82.41,32.8787]
[1646624093542,1.63299391,82.456,82.41,32.8787]
[1646624093743,51.16177173,82.455,82.41,14.68]
[1646624093944,1.63299391,82.45,82.41,14.68]
[1646624094342,1.63299391,82.448,82.41,14.68]
[1646624094945,1.63299391,82.45,82.41,14.68]
[1646624095247,1.63299391,82.451,82.41,14.68]
[1646624095746,1.63299391,82.45,82.41,14.68]
[1646624096544,1.63299391,82.449,82.41,14.68]
[1646624097146,1.63299391,82.449,82.41,32.8785]
[1646624097345,1.63299391,82.45,82.41,32.8785]
[1646624097545,1.63299391,82.453,82.41,32.8785]
[1646624098046,1.63299391,82.455,82.41,32.8785]
[1646624098244,1.63299391,82.457,82.41,32.8785]
[1646624098444,1.63299391,82.456,82.41,32.8785]
[1646624098647,1.63299391,82.455,82.41,32.3785]
[1646624098846,1.63299391,82.456,82.41,32.3785]
[1646624099047,1.63299391,82.457,82.41,32.3785]
[1646624099946,1.63299391,82.456,82.41,32.3785]